bitfinex/quotes_SOLUSD_20220211
["timestamp","ask_amount","ask_price","bid_price","bid_amount"]
[1644611694058,2.38366791,97.826,97.702,24.793]
[1644611694260,5.114,97.825,97.702,24.793]
[1644611694660,15.3547,97.8,97.702,24.793]
[1644611694861,39.42513739,97.798,97.702,24.793]
[1644611695759,15.3591,97.77,97.671,113.0]
[1644611695961,15.3591,97.77,97.63,63.3573]
[1644611695962,35.32807344,97.769,97.628,113.0]
[1644611696160,42.82874135,97.769,97.628,113.0]
[1644611696361,1.04,97.765,97.599,5.117]
[1644611696561,1.04,97.765,97.57,12.15]
[1644611696562,5.118,97.764,97.601,4.00922]
[1644611696764,15.3687,97.73,97.602,4.46127103]
[1644611696961,48.25465586,97.729,97.603,4.00914]
[1644611697161,5.119,97.728,97.603,4.00914]
[1644611697361,5.119,97.728,97.585,2.88511139]
[1644611697560,2.38366791,97.727,97.578,2.88511139]
[1644611697760,5.12,97.726,97.573,5.119]
[1644611698162,15.3734,97.7,97.573,5.119]
[1644611698363,12.15,97.69,97.573,5.119]
[1644611698566,12.15,97.68,97.573,5.119]
[1644611698763,12.15,97.67,97.511,5.121]
[1644611698966,12.15,97.66,97.512,8.46067763]
[1644611699166,15.3864,97.62,97.52,0.024]
[1644611699365,35.5093277,97.619,97.521,5.124]
[1644611699565,35.5093277,97.619,97.514,9.1368]
[1644611700367,15.3864,97.61,97.514,9.1368]
[1644611700571,35.5093277,97.619,97.515,6.82264433]
[1644611700865,35.5093277,97.619,97.516,9.56297642]
[1644611701066,35.5093277,97.619,97.516,2.38366791]
[1644611701267,35.5093277,97.619,97.5,12.174]
[1644611701468,5.125,97.618,97.5,0.024]
[1644611701667,15.3868,97.61,97.501,5.125]
[1644611701866,27.5368,97.61,97.498,2.88511139]
[1644611702066,7.50866791,97.609,97.485,113.0]
[1644611702471,2.38366791,97.608,97.499,6.91657919]
[1644611702669,5.125,97.607,97.5,4.01337]
[1644611702967,15.392,97.58,97.5,4.01337]
[1644611703169,43.9072454,97.579,97.5,4.01337]
[1644611703385,43.9072454,97.579,97.499,6.91657919]
[1644611703970,5.126,97.609,97.499,6.91657919]
[1644611704171,5.33790676,97.629,97.499,6.91657919]
[1644611704370,5.125,97.625,97.5,0.024]
[1644611704569,5.124,97.639,97.5,0.024]
[1644611704869,35.36492292,97.648,97.51,0.024]
[1644611705069,15.3862,97.61,97.5,5.148]
[1644611705369,36.69891125,97.609,97.5,0.024]
[1644611705572,41.82391125,97.609,97.485,6.91657919]
[1644611705773,36.69891125,97.609,97.486,5.125]
[1644611705969,5.125,97.608,97.485,6.91657919]
[1644611706171,15.3891,97.59,97.485,6.91657919]
[1644611706370,39.80477622,97.588,97.485,6.91657919]
[1644611707870,15.3909,97.58,97.485,6.91657919]
[1644611708072,15.3909,97.58,97.486,5.126]
[1644611708270,15.3909,97.58,97.485,6.91657919]
[1644611708473,15.3909,97.58,97.483,1.42254677]
[1644611708672,15.3909,97.58,97.481,6.91657919]
[1644611708880,7.50966791,97.579,97.481,6.91657919]
[1644611709182,120.0,97.548,97.464,1.42254677]
[1644611709380,79.127,97.547,97.409,2.88511139]
[1644611709680,12.15,97.54,97.413,4.01696]
[1644611709878,5.128,97.539,97.413,4.01696]
[1644611710280,15.3989,97.53,97.413,4.01696]
[1644611710480,12.15,97.52,97.413,4.01696]
[1644611710679,43.65343774,97.519,97.4,1.0]
[1644611710879,5.13,97.518,97.4,1.0]
[1644611711487,15.4069,97.5,97.4,1.0]
[1644611711680,47.64447342,97.499,97.402,3.31587662]
[1644611711882,27.285481,97.499,97.41,2.88511139]
[1644611712081,27.285481,97.499,97.404,4.39920117]
[1644611712283,27.285481,97.499,97.405,4.39920117]
[1644611712580,27.285481,97.499,97.411,2.38366791]
[1644611712981,27.285481,97.499,97.41,27.5474]
[1644611713383,27.285481,97.499,97.411,2.38366791]
[1644611713801,15.4005,97.53,97.412,5.13]
[1644611714008,12.15,97.57,97.438,113.0]
[1644611714208,12.15,97.59,97.439,5.127]
[1644611714410,5.127,97.588,97.446,2.88511139]
[1644611714605,12.15,97.6,97.44,4.11380822]
[1644611714809,39.99869551,97.599,97.442,20.61467579]
[1644611715005,5.127,97.598,97.443,5.127]
[1644611715204,7.51066791,97.598,97.443,5.127]
[1644611715805,15.3921,97.58,97.45,27.542]
[1644611716006,48.42369969,97.579,97.451,5.127]
[1644611716208,48.42369969,97.579,97.482,113.0]
[1644611716810,48.42369969,97.579,97.46,15.3894]
[1644611717012,15.3934,97.57,97.451,5.127]
[1644611717213,48.42369969,97.579,97.447,2.38366791]
[1644611717509,2.38366791,97.569,97.46,113.0]
[1644611717709,2.38366791,97.569,97.434,2.38366791]
[1644611717710,5.127,97.568,97.423,2.88511139]
[1644611717910,5.127,97.568,97.417,4.11206274]
[1644611718111,2.38366791,97.567,97.417,4.11206274]
[1644611718308,2.38366791,97.567,97.405,2.88511139]
[1644611718309,15.3997,97.54,97.405,2.88511139]
[1644611718509,46.96403375,97.529,97.404,5.127]
[1644611718710,5.128,97.528,97.406,4.01725]
[1644611719110,7.51166791,97.528,97.406,4.01725]
[1644611719307,2.38366791,97.527,97.406,4.01725]
[1644611719809,15.4049,97.5,97.406,4.01725]
[1644611720008,51.3496,97.52,97.406,4.01725]
[1644611720009,5.13,97.499,97.406,4.01725]
[1644611720310,5.13,97.519,97.406,4.01725]
[1644611720510,46.96403375,97.529,97.406,4.01725]
[1644611720712,5.128,97.528,97.406,4.01725]
[1644611720908,15.4013,97.51,97.407,4.11257815]
[1644611721109,15.4013,97.51,97.4,1.0]
[1644611721110,15.4013,97.51,97.408,4.01716]
[1644611721910,40.80760729,97.509,97.408,4.01716]
[1644611722109,39.14013999,97.489,97.408,4.01716]
[1644611722509,39.14013999,97.489,97.41,2.88511139]
[1644611722710,39.14013999,97.489,97.412,2.88511139]
[1644611722913,39.14013999,97.489,97.411,7.01325126]
[1644611723109,39.14013999,97.489,97.401,5.13]
[1644611723110,39.14013999,97.489,97.408,2.88511139]
[1644611723511,39.14013999,97.489,97.421,2.88511139]
[1644611723710,39.14013999,97.489,97.423,2.88511139]
[1644611723917,39.14013999,97.489,97.421,2.88511139]
[1644611724115,39.14013999,97.489,97.422,2.88511139]
[1644611724412,5.131,97.488,97.41,2.88511139]
[1644611724612,15.4056,97.48,97.401,7.01325126]
[1644611724812,15.4056,97.48,97.4,1.0]
[1644611724813,5.131,97.479,97.4,1.0]
[1644611725113,5.131,97.487,97.401,4.1392572]
[1644611725316,5.131,97.488,97.401,4.1392572]
[1644611725512,5.131,97.488,97.408,2.88511139]
[1644611725713,2.38366791,97.487,97.405,2.88511139]
[1644611725915,15.4094,97.46,97.405,2.88511139]
[1644611726113,15.4094,97.46,97.408,2.88511139]
[1644611726312,36.23226667,97.459,97.417,2.88511139]
[1644611726715,36.23226667,97.459,97.421,2.88511139]
[1644611726914,36.23226667,97.459,97.422,2.88511139]
[1644611727319,36.23226667,97.459,97.407,4.1392572]
[1644611727320,36.23226667,97.459,97.423,2.88511139]
[1644611727515,36.23226667,97.459,97.434,2.88511139]
[1644611727713,36.23226667,97.459,97.438,2.88511139]
[1644611728413,36.23226667,97.459,97.441,2.88511139]
[1644611728623,36.23226667,97.459,97.449,2.88511139]
[1644611728827,36.23226667,97.459,97.452,2.88511139]
[1644611729031,15.4024,97.5,97.453,2.88511139]
[1644611729425,15.4024,97.5,97.46,2.88511139]
[1644611730023,36.06254582,97.499,97.46,2.88511139]
[1644611730425,36.06254582,97.499,97.466,2.88511139]
[1644611730636,36.06254582,97.499,97.439,4.32710437]
[1644611730637,36.06254582,97.499,97.474,2.88511139]
[1644611731028,36.06254582,97.499,97.466,2.88511139]
[1644611731227,10.06254582,97.499,97.47,2.88511139]
[1644611731427,10.06254582,97.499,97.475,2.88511139]
[1644611731632,10.06254582,97.499,97.474,2.88511139]
[1644611731827,10.06254582,97.499,97.467,2.88511139]
[1644611732028,13.14828306,97.5,97.468,4.1392572]
[1644611732229,13.14828306,97.5,97.421,2.88511139]
[1644611732430,13.14828306,97.5,97.417,2.88511139]
[1644611732729,12.15,97.52,97.414,2.88511139]
[1644611732730,5.13,97.499,97.414,2.88511139]
[1644611732931,43.34130944,97.498,97.414,7.02436859]
[1644611733131,43.34130944,97.498,97.415,4.1392572]
[1644611733332,43.34130944,97.498,97.417,2.88511139]
[1644611733530,43.34130944,97.498,97.418,2.88511139]
[1644611733734,15.4074,97.48,97.418,4.1392572]
[1644611733934,15.4074,97.48,97.419,4.1392572]
[1644611734141,5.13,97.515,97.419,41.51235867]
[1644611734333,5.128,97.529,97.419,41.51235867]
[1644611734535,5.128,97.559,97.436,2.88511139]
[1644611734734,5.128,97.559,97.448,2.88511139]
[1644611734932,5.128,97.559,97.421,8.46636157]
[1644611734933,5.128,97.559,97.449,2.88511139]
[1644611735134,40.30218444,97.558,97.45,25.50510815]
[1644611735335,40.30218444,97.558,97.453,2.88511139]
[1644611735534,40.30218444,97.558,97.452,4.1392572]
[1644611735735,40.30218444,97.558,97.453,4.1392572]
[1644611735736,15.399,97.52,97.453,4.1392572]
[1644611735935,5.128,97.519,97.453,4.1392572]
[1644611736135,2.38366791,97.519,97.453,4.1392572]
[1644611736335,12.15,97.54,97.432,2.88511139]
[1644611736536,36.52522544,97.518,97.447,2.88511139]
[1644611736740,36.52522544,97.518,97.466,2.88511139]
[1644611736936,15.3972,97.53,97.466,2.88511139]
[1644611737139,2.38366791,97.564,97.465,43.18348087]
[1644611737140,5.128,97.559,97.473,2.88511139]
[1644611737336,5.128,97.579,97.486,2.88511139]
[1644611737536,5.126,97.612,97.486,2.88511139]
[1644611737737,15.3848,97.61,97.502,2.88511139]
[1644611737938,15.3848,97.61,97.487,5.125]
[1644611737939,15.3848,97.61,97.512,2.88511139]
[1644611738137,5.125,97.629,97.517,2.88511139]
[1644611738337,7.50866791,97.647,97.529,2.88511139]
[1644611738540,2.38366791,97.647,97.532,2.88511139]
[1644611738736,23.58933988,97.646,97.521,3.66708303]
[1644611738936,27.5298,97.64,97.514,3.66708303]
[1644611739137,5.124,97.639,97.505,2.88511139]
[1644611739341,5.124,97.639,97.498,2.88511139]
[1644611739342,36.33073812,97.639,97.498,2.88511139]
[1644611739539,36.33073812,97.639,97.493,2.88511139]
[1644611739837,18.46633988,97.638,97.493,2.88511139]
[1644611740038,53.35143283,97.637,97.489,6.55219442]
[1644611740339,71.81777271,97.637,97.489,3.66708303]
[1644611740546,31.20673812,97.636,97.489,3.66708303]
[1644611740740,15.39,97.61,97.489,3.66708303]
[1644611740938,5.125,97.609,97.489,3.66708303]
[1644611741140,39.01678333,97.608,97.491,2.88511139]
[1644611741339,39.01678333,97.608,97.489,3.66708303]
[1644611741340,5.125,97.607,97.49,8.01011139]
[1644611741639,23.59133988,97.607,97.478,2.88511139]
[1644611741842,16.08267197,97.606,97.49,0.16398697]
[1644611742039,5.125,97.605,97.49,0.16398697]
[1644611742240,7.50866791,97.605,97.49,0.16398697]
[1644611742440,16.08267197,97.604,97.49,0.16398697]
[1644611742641,12.15,97.6,97.49,0.16398697]
[1644611742842,15.3907,97.58,97.49,0.16398697]
[1644611743041,12.15,97.57,97.49,0.16398697]
[1644611743243,12.15,97.56,97.49,0.16398697]
[1644611743443,5.126,97.559,97.49,0.16398697]
[1644611743644,41.82379796,97.559,97.49,0.16398697]
[1644611743843,15.4025,97.54,97.49,0.16398697]
[1644611744046,5.127,97.539,97.49,0.16398697]
[1644611744243,12.15,97.53,97.49,0.16398697]
[1644611744650,5.127,97.529,97.49,0.16398697]
[1644611744848,41.33035428,97.528,97.441,0.16398697]
[1644611745049,5.128,97.527,97.441,0.16398697]
[1644611745450,15.4059,97.52,97.441,0.16398697]
[1644611745650,12.15,97.51,97.441,0.16398697]
[1644611746050,41.13403566,97.509,97.441,0.16398697]
[1644611746250,43.51770357,97.509,97.441,0.16398697]
[1644611746454,2.38366791,97.508,97.441,0.16398697]
[1644611746652,5.128,97.507,97.441,0.16398697]
[1644611746857,15.4091,97.5,97.441,0.16398697]
[1644611747055,12.15,97.49,97.441,0.16398697]
[1644611747273,44.95424163,97.489,97.441,0.16398697]
[1644611747471,5.13,97.488,97.441,0.16398697]
[1644611747677,44.95424163,97.489,97.441,0.16398697]
[1644611747877,15.4105,97.48,97.411,0.16398697]
[1644611748079,27.5605,97.48,97.411,0.16398697]
[1644611749080,5.131,97.479,97.411,0.16398697]
[1644611749280,15.411,97.46,97.411,0.16398697]
[1644611749476,13.411,97.46,97.411,0.16398697]
[1644611750076,48.48749868,97.459,97.411,0.16398697]
[1644611750275,15.4113,97.45,97.411,0.16398697]
[1644611750877,15.4113,97.45,97.401,0.16398697]
[1644611753781,88.0,97.449,97.37,5.132]
[1644611753980,102.0,97.448,97.364,2.88511139]
[1644611754181,15.4164,97.43,97.33,0.024]
[1644611754380,5.133,97.447,97.31,0.024]
[1644611754381,51.4133,97.41,97.31,0.024]
[1644611754583,12.15,97.4,97.29,0.024]
[1644611754781,12.15,97.4,97.251,145.2709]
[1644611754782,5.136,97.399,97.27,0.024]
[1644611754979,5.136,97.399,97.271,5.136]
[1644611755182,41.13909579,97.398,97.272,41.60692492]
[1644611755381,5.136,97.397,97.273,5.136]
[1644611755681,15.426,97.37,97.27,0.024]
[1644611755981,15.426,97.37,97.252,5.136]
[1644611756180,27.576,97.37,97.252,4.636]
[1644611756582,46.06396047,97.369,97.253,48.29670963]
[1644611756781,46.06396047,97.369,97.254,5.138]
[1644611756981,15.4271,97.36,97.254,5.138]
[1644611757180,5.138,97.368,97.253,48.29670963]
[1644611757383,46.06396047,97.369,97.272,113.0]
[1644611757583,12.15,97.39,97.273,42.73763149]
[1644611757781,12.15,97.41,97.273,42.73763149]
[1644611757981,63.5562,97.42,97.28,0.024]
[1644611758184,27.567,97.42,97.281,5.136]
[1644611758583,41.15656194,97.419,97.281,5.136]
[1644611758784,5.136,97.418,97.281,5.136]
[1644611759889,41.15656194,97.419,97.29,15.4165]
[1644611760088,41.15656194,97.419,97.291,46.15148727]
[1644611760288,41.15656194,97.419,97.3,12.15]
[1644611760488,41.15656194,97.419,97.301,5.135]
[1644611761287,41.15656194,97.419,97.32,15.4121]
[1644611761485,41.15656194,97.419,97.322,45.21707371]
[1644611761688,41.15656194,97.419,97.323,5.135]
[1644611761988,5.134,97.418,97.322,45.21707371]
[1644611762185,41.15656194,97.419,97.322,45.21707371]
[1644611762587,5.135,97.418,97.322,45.21707371]
[1644611763390,5.135,97.463,97.33,27.5605]
[1644611763591,5.133,97.498,97.35,0.48]
[1644611763790,15.4045,97.5,97.36,12.63]
[1644611763990,5.132,97.529,97.37,12.15]
[1644611764193,5.132,97.529,97.371,46.4542]
[1644611764394,39.69135075,97.528,97.38,15.4271]
[1644611764594,5.13,97.527,97.38,15.4271]
[1644611764792,7.51366791,97.527,97.38,0.024]
[1644611764995,15.4012,97.52,97.38,0.024]
[1644611765192,51.3662,97.49,97.38,0.024]
[1644611765392,5.131,97.489,97.372,44.48814757]
[1644611765593,42.12891139,97.488,97.36,0.024]
[1644611765795,5.132,97.487,97.36,0.024]
[1644611766192,2.38366791,97.486,97.36,0.024]
[1644611766493,5.132,97.485,97.36,0.024]
[1644611766694,15.4099,97.48,97.36,0.024]
[1644611766892,5.132,97.479,97.349,44.19210921]
[1644611767497,5.132,97.479,97.35,0.024]
[1644611767694,5.132,97.479,97.351,5.132]
[1644611767996,45.81078562,97.469,97.35,0.024]
[1644611768294,5.132,97.468,97.35,0.024]
[1644611768895,2.38366791,97.467,97.35,0.024]
[1644611769095,45.81078562,97.469,97.35,0.024]
[1644611769296,5.132,97.468,97.35,12.174]
[1644611769495,5.132,97.468,97.35,27.3265]
[1644611770498,45.81078562,97.469,97.351,5.132]
[1644611770712,45.81078562,97.469,97.36,15.4071]
[1644611771001,45.81078562,97.469,97.351,5.132]
[1644611771201,5.132,97.468,97.35,0.024]
[1644611771401,3.24488831,97.468,97.35,0.024]
[1644611771602,7.51566791,97.468,97.35,0.024]
[1644611772005,15.4099,97.46,97.35,0.024]
[1644611772204,5.133,97.459,97.349,44.19210921]
[1644611772404,45.81078562,97.469,97.35,0.024]
[1644611772608,45.81078562,97.469,97.351,5.132]
[1644611772809,45.81078562,97.469,97.35,5.156]
[1644611773007,5.132,97.468,97.35,0.024]
[1644611773407,15.4098,97.46,97.35,0.024]
[1644611773606,5.133,97.459,97.35,0.024]
[1644611773806,2.38366791,97.459,97.35,0.024]
[1644611774208,34.722,97.458,97.349,43.71610921]
[1644611774407,34.722,97.458,97.333,5.132]
[1644611774408,15.414,97.43,97.333,5.132]
[1644611774609,5.133,97.457,97.333,5.132]
[1644611774610,5.134,97.429,97.333,5.132]
[1644611774807,2.38366791,97.429,97.333,5.132]
[1644611775007,5.134,97.428,97.333,5.132]
[1644611775210,7.51766791,97.428,97.333,5.132]
[1644611775408,42.71889141,97.427,97.333,5.132]
[1644611775607,5.134,97.426,97.279,5.134]
[1644611775807,15.4196,97.41,97.278,48.001]
[1644611776010,12.15,97.4,97.278,48.001]
[1644611776208,5.136,97.399,97.278,48.001]
[1644611776507,44.83485779,97.399,97.279,39.3500248]
[1644611777312,2.38366791,97.398,97.279,39.3500248]
[1644611777513,5.136,97.397,97.279,39.3500248]
[1644611777714,15.4253,97.37,97.279,39.3500248]
[1644611777912,45.26773668,97.369,97.279,39.3500248]
[1644611779318,63.5676,97.39,97.279,39.3500248]
[1644611779520,5.136,97.417,97.29,0.48]
[1644611779721,12.15,97.46,97.308,61.78]
[1644611779919,5.133,97.49,97.32,12.15]
[1644611780119,12.15,97.48,97.321,69.8786]
[1644611780323,49.68111933,97.479,97.322,37.6645785]
[1644611780520,15.4097,97.46,97.321,23.9453]
[1644611780720,61.64534535,97.479,97.281,5.133]
[1644611780721,12.15,97.45,97.281,5.133]
[1644611780921,12.15,97.44,97.28,0.58350631]
[1644611781132,12.15,97.43,97.28,0.58350631]
[1644611781333,12.15,97.42,97.28,0.58350631]
[1644611781635,43.15614478,97.409,97.281,43.07981635]
[1644611782035,5.136,97.408,97.281,37.94381635]
[1644611782231,43.15614478,97.409,97.282,7.51966791]
[1644611782631,43.15614478,97.409,97.283,2.38366791]
[1644611782833,43.15614478,97.409,97.29,15.4191]
[1644611783033,43.15614478,97.409,97.291,5.136]
[1644611783235,43.15614478,97.409,97.291,2.38366791]
[1644611783433,5.136,97.408,97.292,2.38366791]
[1644611784834,15.4184,97.4,97.31,15.4165]
[1644611785035,15.4184,97.4,97.311,43.77781599]
[1644611785235,5.135,97.399,97.311,43.77781599]
[1644611785835,15.4184,97.4,97.311,43.77781599]
[1644611786236,15.4159,97.42,97.311,43.77781599]
[1644611786442,5.135,97.448,97.32,12.15]
[1644611786638,5.135,97.5,97.33,0.48]
[1644611786839,15.4734,97.525,97.341,61.78]
[1644611787038,15.4734,97.525,97.351,61.78]
[1644611787039,5.131,97.524,97.351,61.78]
[1644611787238,37.2105352,97.523,97.351,104.8167474]
[1644611787439,5.131,97.522,97.353,61.78]
[1644611787638,12.15,97.51,97.354,46.7756]
[1644611787839,36.34473168,97.499,97.366,41.85039669]
[1644611788041,12.15,97.49,97.366,41.85039669]
[1644611788238,5.131,97.489,97.366,41.85039669]
[1644611788643,7.51466791,97.489,97.366,41.85039669]
[1644611788838,2.38366791,97.488,97.366,41.85039669]
[1644611789040,36.28551039,97.459,97.366,41.85039669]
[1644611789238,5.132,97.458,97.366,41.85039669]
[1644611789840,5.132,97.498,97.367,64.74717422]
[1644611790042,15.4021,97.51,97.371,61.78]
[1644611790339,5.131,97.509,97.371,61.78]
[1644611790542,4.631,97.529,97.372,2.38366791]
[1644611790739,44.64039497,97.528,97.372,2.38366791]
[1644611790939,5.13,97.527,97.374,61.78]
[1644611791141,44.64039497,97.528,97.376,61.28]
[1644611791345,44.64039497,97.528,97.38,12.15]
[1644611791544,15.4006,97.52,97.391,38.26631923]
[1644611791743,5.13,97.519,97.391,38.26631923]
[1644611791944,2.38366791,97.519,97.391,38.26631923]
[1644611792145,5.13,97.518,97.391,38.26631923]
[1644611792344,7.51366791,97.518,97.391,38.26631923]
[1644611792545,27.48741903,97.517,97.391,38.26631923]
[1644611792744,15.4054,97.49,97.37,0.024]
[1644611792946,12.15,97.48,97.37,0.024]
[1644611793149,12.15,97.48,97.262,171.0354266]
[1644611793150,1.04,97.465,97.276,4.32710437]
[1644611793345,12.15,97.46,97.293,4.02191]
[1644611793546,5.134,97.459,97.293,4.02191]
[1644611793747,36.92243201,97.458,97.294,48.30732635]
[1644611793945,45.4786345,97.429,97.3,15.4187]
[1644611794144,12.15,97.42,97.302,4.02154]
[1644611794345,5.135,97.419,97.302,4.02154]
[1644611794545,12.15,97.42,97.302,4.02154]
[1644611794745,45.4786345,97.429,97.303,5.135]
[1644611794945,15.4145,97.42,97.31,15.4171]
[1644611795145,15.4145,97.42,97.312,47.96666487]
[1644611795546,45.4786345,97.429,97.313,5.135]
[1644611795750,5.134,97.428,97.312,47.96666487]
[1644611796149,45.4786345,97.429,97.312,47.96666487]
[1644611796150,15.4138,97.42,97.312,47.96666487]
[1644611796750,45.4786345,97.429,97.313,66.915]
[1644611797350,45.4786345,97.429,97.32,15.4155]
[1644611797550,45.4786345,97.429,97.321,5.134]
[1644611797750,7.51766791,97.428,97.312,47.96666487]
[1644611798149,14.34789393,97.427,97.312,47.96666487]
[1644611798352,5.135,97.426,97.312,47.96666487]
[1644611798549,15.4137,97.42,97.312,47.96666487]
[1644611798750,12.15,97.41,97.312,47.96666487]
[1644611798949,12.15,97.4,97.312,47.96666487]
[1644611799150,44.01645366,97.408,97.312,47.96666487]
[1644611799552,17.285,97.43,97.32,15.4152]
[1644611799853,5.134,97.468,97.321,61.78]
[1644611800051,5.133,97.479,97.323,61.78]
[1644611800253,12.15,97.48,97.325,61.78]
[1644611800451,41.06284866,97.479,97.325,61.78]
[1644611800653,41.06284866,97.479,97.323,5.133]
[1644611800654,46.19584866,97.479,97.328,38.10855702]
[1644611800856,46.19584866,97.479,97.329,22.8251]
[1644611801057,46.19584866,97.479,97.33,61.78]
[1644611801256,46.19584866,97.479,97.329,22.8251]
[1644611801257,46.19584866,97.479,97.332,61.78]
[1644611801457,46.19584866,97.479,97.333,5.133]
[1644611801857,36.02401815,97.459,97.361,43.80132289]
[1644611802257,5.132,97.458,97.341,24.267]
[1644611802457,12.15,97.45,97.341,24.267]
[1644611802656,5.133,97.449,97.341,24.267]
[1644611802856,15.415,97.42,97.341,24.267]
[1644611803057,15.415,97.42,97.301,5.134]
[1644611803257,63.5331,97.43,97.335,37.03444124]
[1644611803258,44.08877669,97.419,97.335,37.03444124]
[1644611803460,46.4724446,97.419,97.335,37.03444124]
[1644611803859,2.38366791,97.418,97.335,37.03444124]
[1644611804159,34.88237132,97.399,97.335,37.03444124]
[1644611807064,51.391,97.42,97.335,37.03444124]
[1644611807289,5.135,97.429,97.335,37.03444124]
[1644611807491,12.15,97.45,97.336,61.78]
[1644611807689,12.15,97.48,97.337,91.0411]
[1644611807892,15.4058,97.47,97.341,61.78]
[1644611808189,36.37806849,97.469,97.343,61.78]
[1644611808388,36.37806849,97.469,97.35,0.024]
[1644611809590,36.37806849,97.469,97.38,15.405]
[1644611809788,36.37806849,97.469,97.381,37.49458698]
[1644611811392,36.37806849,97.469,97.382,5.132]
[1644611811791,36.37806849,97.469,97.39,15.4048]
[1644611812193,36.37806849,97.469,97.381,37.49458698]
[1644611812694,5.132,97.468,97.381,37.49458698]
[1644611813095,12.15,97.5,97.381,37.49458698]
[1644611813295,5.131,97.499,97.381,37.49458698]
[1644611813796,36.20454596,97.498,97.382,61.78]
[1644611813995,36.20454596,97.498,97.384,61.78]
[1644611814294,36.20454596,97.498,97.383,5.131]
[1644611814494,42.48026502,97.479,97.383,5.131]
[1644611814695,5.131,97.478,97.383,5.131]
[1644611815397,15.4084,97.45,97.383,5.131]
[1644611815596,12.15,97.49,97.384,61.78]
[1644611815795,12.15,97.52,97.384,61.78]
[1644611815998,5.13,97.519,97.386,61.78]
[1644611816599,45.94070989,97.518,97.386,61.78]
[1644611816798,15.399,97.51,97.391,61.78]
[1644611816997,45.94070989,97.518,97.393,61.78]
[1644611817198,45.94070989,97.518,97.396,37.06785227]
[1644611817400,45.94070989,97.518,97.397,61.78]
[1644611817701,45.94070989,97.518,97.398,5.13]
[1644611817901,12.15,97.51,97.396,37.06785227]
[1644611818101,5.13,97.509,97.396,37.06785227]
[1644611818308,12.15,97.51,97.396,37.06785227]
[1644611818500,12.15,97.51,97.397,5.13]
[1644611818902,12.15,97.51,97.397,66.91]
[1644611819201,12.15,97.53,97.401,61.78]
[1644611819400,63.4746,97.54,97.401,61.78]
[1644611819599,63.4746,97.54,97.398,48.8352]
[1644611819600,5.128,97.539,97.398,48.8352]
[1644611820001,43.71879246,97.538,97.398,48.8352]
[1644611820201,5.128,97.537,97.398,48.8352]
[1644611820401,42.86806167,97.519,97.411,48.10845544]
[1644611821002,5.13,97.518,97.411,48.10845544]
[1644611821402,5.13,97.518,97.412,61.78]
[1644611821801,15.3991,97.51,97.411,48.10845544]
[1644611822000,5.13,97.509,97.411,48.10845544]
[1644611822201,37.52100845,97.499,97.411,48.10845544]
[1644611822401,12.15,97.49,97.411,48.10845544]
[1644611822602,5.13,97.489,97.411,48.10845544]
[1644611822802,12.15,97.49,97.411,48.10845544]
[1644611823003,5.13,97.489,97.411,48.10845544]
[1644611823604,12.15,97.49,97.411,48.10845544]
[1644611823807,15.4032,97.48,97.368,45.5093]
[1644611824006,5.132,97.479,97.369,61.78]
[1644611824209,12.15,97.48,97.369,61.78]
[1644611824403,37.52100845,97.499,97.37,2.38366791]
[1644611824803,15.4024,97.49,97.41,15.4021]
[1644611825004,15.4024,97.49,97.411,46.54918674]
[1644611825606,5.131,97.498,97.411,46.54918674]
[1644611825804,5.13,97.533,97.412,61.78]
[1644611826042,12.15,97.53,97.42,15.4006]
[1644611826208,308.4536,97.629,97.421,186.908]
[1644611826405,1.84,97.607,97.45,0.48]
[1644611826607,1.841,97.617,97.46,0.48]